[Event "Early-Titled-Tuesday-Blitz-August-29-2023"]
[Site "Chess.com"]
[Date "2023.08.29"]
[Round "5"]
[White "stasOR4ik"]
[Black "FeketeBarika"]
[Result "1-0"]
[WhiteElo "2491"]
[BlackElo "2332"]
[TimeControl "180+1"]
[EndTime "8:55:41 PDT"]
[Termination "stasOR4ik won by resignation"]

1. e4 {[%clk 0:03:00.9]} 1... e6 {[%clk 0:02:59.2]} 2. c4 {[%clk 0:03:00.7]}
2... d5 {[%clk 0:02:59.2]} 3. cxd5 {[%clk 0:03:01.6]} 3... exd5 {[%clk
0:02:59.7]} 4. exd5 {[%clk 0:03:02.5]} 4... Qxd5 {[%clk 0:03:00]} 5. Nc3 {[%clk
0:03:02.6]} 5... Qd8 {[%clk 0:02:57.6]} 6. Bc4 {[%clk 0:03:03.1]} 6... Nf6
{[%clk 0:02:56.8]} 7. Nf3 {[%clk 0:03:03.5]} 7... Bd6 {[%clk 0:02:54]} 8. Qe2+
{[%clk 0:02:51.1]} 8... Qe7 {[%clk 0:02:44.7]} 9. Qxe7+ {[%clk 0:02:51.3]} 9...
Bxe7 {[%clk 0:02:44.1]} 10. O-O {[%clk 0:02:51.8]} 10... O-O {[%clk 0:02:44]}
11. Re1 {[%clk 0:02:48.9]} 11... Bd6 {[%clk 0:02:39.6]} 12. d4 {[%clk
0:02:48.5]} 12... Bg4 {[%clk 0:02:37.1]} 13. Ne5 {[%clk 0:02:46.1]} 13... c6
{[%clk 0:02:25.6]} 14. Bg5 {[%clk 0:02:41.9]} 14... Nbd7 {[%clk 0:02:23.2]} 15.
Nxg4 {[%clk 0:02:24.6]} 15... Nxg4 {[%clk 0:02:19.1]} 16. Be7 {[%clk 0:02:25.2]}
16... Bxe7 {[%clk 0:02:16.9]} 17. Rxe7 {[%clk 0:02:26.1]} 17... Ngf6 {[%clk
0:02:11.7]} 18. Rae1 {[%clk 0:02:25.6]} 18... Nb6 {[%clk 0:02:05.5]} 19. Bb3
{[%clk 0:02:23.9]} 19... Rab8 {[%clk 0:02:04.6]} 20. f3 {[%clk 0:02:08.3]} 20...
Nbd5 {[%clk 0:02:02.4]} 21. Nxd5 {[%clk 0:02:06.6]} 21... cxd5 {[%clk
0:02:03.3]} 22. g4 {[%clk 0:02:00.9]} 22... h6 {[%clk 0:02:02.4]} 23. h4 {[%clk
0:01:59.7]} 23... Rfd8 {[%clk 0:01:45.4]} 24. g5 {[%clk 0:01:51.6]} 24... hxg5
{[%clk 0:01:46.3]} 25. hxg5 {[%clk 0:01:52.2]} 25... Nh5 {[%clk 0:01:42.1]} 26.
R1e5 {[%clk 0:01:50.6]} 26... Nf4 {[%clk 0:01:38.7]} 27. Rf5 {[%clk 0:01:45.1]}
27... Ne6 {[%clk 0:01:30.7]} 28. Rfxf7 {[%clk 0:01:26.7]} 28... Nxg5 {[%clk
0:01:08.4]} 29. Rxg7+ {[%clk 0:01:23.4]} 29... Kf8 {[%clk 0:01:08.9]} 30. Kf2
{[%clk 0:01:14.5]} 30... Rd6 {[%clk 0:00:57]} 31. Rxb7 {[%clk 0:01:04.7]} 31...
Rxb7 {[%clk 0:00:55.3]} 32. Rxb7 {[%clk 0:01:05.6]} 32... a5 {[%clk 0:00:51.5]}
33. Rb5 {[%clk 0:01:04.7]} 33... Ne6 {[%clk 0:00:44.9]} 34. Ke3 {[%clk
0:01:02.8]} 34... Nc7 {[%clk 0:00:44.5]} 35. Rxa5 {[%clk 0:01:00.3]} 35... Re6+
{[%clk 0:00:45]} 36. Kf2 {[%clk 0:00:57.8]} 36... Rd6 {[%clk 0:00:42.9]} 37. Rc5
{[%clk 0:00:56.3]} 37... Ne6 {[%clk 0:00:40.7]} 38. Rxd5 {[%clk 0:00:54.9]}
38... Rb6 {[%clk 0:00:38.5]} 39. Ke3 {[%clk 0:00:49.6]} 39... Nc7 {[%clk
0:00:32.3]} 40. Rd8+ {[%clk 0:00:46.1]} 40... Ke7 {[%clk 0:00:30.9]} 41. Rh8
{[%clk 0:00:46.7]} 41... Nb5 {[%clk 0:00:29.7]} 42. Rh7+ {[%clk 0:00:45.7]}
42... Kf8 {[%clk 0:00:29.6]} 43. f4 {[%clk 0:00:41.2]} 43... Rg6 {[%clk
0:00:26.1]} 44. Rf7+ {[%clk 0:00:33.2]} 44... Ke8 {[%clk 0:00:25.1]} 45. Rf5
{[%clk 0:00:31.2]} 45... Nd6 {[%clk 0:00:23.4]} 46. Re5+ {[%clk 0:00:27.1]}
46... Kd7 {[%clk 0:00:22.3]} 47. Rg5 {[%clk 0:00:17.8]} 47... Rh6 {[%clk
0:00:22]} 48. d5 {[%clk 0:00:15.5]} 48... Rh2 {[%clk 0:00:18.3]} 49. Rg7+ {[%clk
0:00:15]} 49... Kd8 {[%clk 0:00:18.7]} 50. Rg6 {[%clk 0:00:12.4]} 50... Ke7
{[%clk 0:00:16.9]} 51. Kd4 {[%clk 0:00:11.2]} 51... Rd2+ {[%clk 0:00:15.4]} 52.
Kc3 {[%clk 0:00:10.1]} 52... Ne4+ {[%clk 0:00:14.3]} 53. Kb4 {[%clk 0:00:10.3]}
53... Rxb2 {[%clk 0:00:14.1]} 54. Re6+ {[%clk 0:00:09.7]} 54... Kd7 {[%clk
0:00:13.8]} 55. Rxe4 {[%clk 0:00:10.5]} 1-0

[Event "Early-Titled-Tuesday-Blitz-August-29-2023"]
[Site "Chess.com"]
[Date "2023.08.29"]
[Round "5"]
[White "Larina_Maria"]
[Black "Tsyhanchuk_Stanislav"]
[Result "0-1"]
[WhiteElo "2215"]
[BlackElo "2426"]
[TimeControl "180+1"]
[EndTime "8:55:42 PDT"]
[Termination "Tsyhanchuk_Stanislav won by resignation"]

1. e4 {[%clk 0:03:00.9]} 1... c5 {[%clk 0:02:59.3]} 2. Nc3 {[%clk 0:03:00.5]}
2... Nc6 {[%clk 0:02:58.5]} 3. g3 {[%clk 0:03:00.7]} 3... g6 {[%clk 0:02:58.2]}
4. Bg2 {[%clk 0:03:01.3]} 4... Bg7 {[%clk 0:02:58.8]} 5. d3 {[%clk 0:03:02]}
5... d6 {[%clk 0:02:58.5]} 6. Be3 {[%clk 0:03:01.9]} 6... Rb8 {[%clk 0:02:58.8]}
7. a4 {[%clk 0:03:01.2]} 7... a6 {[%clk 0:02:58.1]} 8. Qd2 {[%clk 0:02:59.3]}
8... b5 {[%clk 0:02:58.3]} 9. axb5 {[%clk 0:03:00.2]} 9... axb5 {[%clk
0:02:59.2]} 10. Nge2 {[%clk 0:02:56.8]} 10... b4 {[%clk 0:02:52.5]} 11. Nd1
{[%clk 0:02:57.3]} 11... Bb7 {[%clk 0:02:50.2]} 12. O-O {[%clk 0:02:56.9]} 12...
Nf6 {[%clk 0:02:49.2]} 13. Bh6 {[%clk 0:02:55.1]} 13... O-O {[%clk 0:02:47.3]}
14. Bxg7 {[%clk 0:02:53.5]} 14... Kxg7 {[%clk 0:02:48.2]} 15. f4 {[%clk
0:02:51.3]} 15... e5 {[%clk 0:02:44.7]} 16. f5 {[%clk 0:02:50.3]} 16... Nd4
{[%clk 0:02:35.9]} 17. Nc1 {[%clk 0:02:46.3]} 17... Qc7 {[%clk 0:02:28.4]} 18.
c3 {[%clk 0:02:45.1]} 18... bxc3 {[%clk 0:02:25.8]} 19. bxc3 {[%clk 0:02:46]}
19... Nc6 {[%clk 0:02:23.1]} 20. Ne3 {[%clk 0:02:38.7]} 20... Ne7 {[%clk
0:02:19.7]} 21. g4 {[%clk 0:02:20.5]} 21... g5 {[%clk 0:02:07]} 22. c4 {[%clk
0:01:34.9]} 22... h6 {[%clk 0:02:00.1]} 23. Ne2 {[%clk 0:01:33.6]} 23... Ra8
{[%clk 0:01:53.2]} 24. Ng3 {[%clk 0:01:31.7]} 24... Rxa1 {[%clk 0:01:45.6]} 25.
Rxa1 {[%clk 0:01:32.6]} 25... Ra8 {[%clk 0:01:45.8]} 26. Rf1 {[%clk 0:01:33]}
26... Qa5 {[%clk 0:01:40.7]} 27. Qe2 {[%clk 0:01:25.1]} 27... Nc6 {[%clk
0:01:36.4]} 28. Nd5 {[%clk 0:01:23.8]} 28... Nd4 {[%clk 0:01:33.8]} 29. Qe3
{[%clk 0:01:21.5]} 29... Bxd5 {[%clk 0:01:31.5]} 30. exd5 {[%clk 0:01:21.6]}
30... Nxg4 {[%clk 0:01:29.4]} 31. Qe4 {[%clk 0:01:17.1]} 31... Nf6 {[%clk
0:01:28.9]} 32. Qe3 {[%clk 0:01:16.5]} 32... Qc3 {[%clk 0:01:21.5]} 33. Ne4
{[%clk 0:01:09.8]} 33... Qc2 {[%clk 0:01:14.2]} 34. Nxd6 {[%clk 0:00:51.5]}
34... Ra2 {[%clk 0:01:05.3]} 35. Rf2 {[%clk 0:00:27.3]} 35... Ne2+ {[%clk
0:00:45.3]} 36. Rxe2 {[%clk 0:00:18]} 36... Qxe2 {[%clk 0:00:45.2]} 37. Qxe2
{[%clk 0:00:18.9]} 37... Rxe2 {[%clk 0:00:45.7]} 38. Nb7 {[%clk 0:00:12.5]}
38... Nd7 {[%clk 0:00:40.5]} 39. d6 {[%clk 0:00:10]} 39... Rd2 {[%clk
0:00:31.8]} 40. Bc6 {[%clk 0:00:10]} 40... Nb8 {[%clk 0:00:31.9]} 41. d7 {[%clk
0:00:10.2]} 41... Nxc6 {[%clk 0:00:31.6]} 42. d8=Q {[%clk 0:00:09.5]} 42... Nxd8
{[%clk 0:00:32.1]} 43. Nxd8 {[%clk 0:00:10.4]} 43... Rxd3 {[%clk 0:00:31.8]} 44.
Nc6 {[%clk 0:00:10.9]} 44... Kf6 {[%clk 0:00:31.1]} 45. Kf1 {[%clk 0:00:10.9]}
45... Kxf5 {[%clk 0:00:30.8]} 46. Ke2 {[%clk 0:00:11.8]} 46... Rd4 {[%clk
0:00:29.9]} 47. Ne7+ {[%clk 0:00:09.7]} 47... Ke6 {[%clk 0:00:28.5]} 48. Ng8
{[%clk 0:00:08.6]} 48... Rh4 {[%clk 0:00:25.6]} 49. Kf3 {[%clk 0:00:06.8]} 49...
f5 {[%clk 0:00:26.1]} 50. Kg3 {[%clk 0:00:06.9]} 50... Kf7 {[%clk 0:00:26.6]}
51. Nxh6+ {[%clk 0:00:05.4]} 51... Rxh6 {[%clk 0:00:27.5]} 52. h4 {[%clk
0:00:05.4]} 52... Rxh4 {[%clk 0:00:28.1]} 53. Kf3 {[%clk 0:00:05.5]} 53... Rxc4
{[%clk 0:00:29]} 54. Ke3 {[%clk 0:00:06.4]} 54... e4 {[%clk 0:00:28.6]} 0-1

[Event "Early-Titled-Tuesday-Blitz-August-29-2023"]
[Site "Chess.com"]
[Date "2023.08.29"]
[Round "5"]
[White "vi_pranav"]
[Black "shimastream"]
[Result "0-1"]
[WhiteElo "2989"]
[BlackElo "2907"]
[TimeControl "180+1"]
[EndTime "8:55:50 PDT"]
[Termination "shimastream won on time"]

1. Nf3 {[%clk 0:03:00.9]} 1... d5 {[%clk 0:02:58.3]} 2. d4 {[%clk 0:03:00.9]}
2... Nf6 {[%clk 0:02:57.8]} 3. Bf4 {[%clk 0:03:01.1]} 3... c5 {[%clk 0:02:50.9]}
4. e3 {[%clk 0:03:00.9]} 4... Nc6 {[%clk 0:02:49.7]} 5. c3 {[%clk 0:02:59.9]}
5... cxd4 {[%clk 0:02:41]} 6. exd4 {[%clk 0:02:59.4]} 6... Bf5 {[%clk
0:02:40.4]} 7. Nbd2 {[%clk 0:02:58.1]} 7... e6 {[%clk 0:02:33]} 8. Bb5 {[%clk
0:02:57.9]} 8... Nd7 {[%clk 0:02:31.6]} 9. O-O {[%clk 0:02:56.9]} 9... Be7
{[%clk 0:02:31.5]} 10. Re1 {[%clk 0:02:55.7]} 10... O-O {[%clk 0:02:30.9]} 11.
h3 {[%clk 0:02:54.3]} 11... a6 {[%clk 0:02:28.4]} 12. Bf1 {[%clk 0:02:47.4]}
12... b5 {[%clk 0:02:26.2]} 13. b4 {[%clk 0:02:43.5]} 13... Nb6 {[%clk
0:02:24.6]} 14. Nb3 {[%clk 0:02:42.4]} 14... Nc4 {[%clk 0:02:20.8]} 15. Nc5
{[%clk 0:02:32.5]} 15... a5 {[%clk 0:02:18.4]} 16. Bxc4 {[%clk 0:02:18.5]} 16...
dxc4 {[%clk 0:02:11.1]} 17. a4 {[%clk 0:02:18.2]} 17... axb4 {[%clk 0:01:51]}
18. axb5 {[%clk 0:02:12.9]} 18... Na7 {[%clk 0:01:51.2]} 19. b6 {[%clk
0:01:52.1]} 19... Qxb6 {[%clk 0:01:46]} 20. Nd7 {[%clk 0:01:51.1]} 20... Qb7
{[%clk 0:01:45.1]} 21. Nxf8 {[%clk 0:01:50.4]} 21... bxc3 {[%clk 0:01:11.4]} 22.
Nxe6 {[%clk 0:01:20.4]} 22... fxe6 {[%clk 0:01:09.9]} 23. d5 {[%clk 0:01:12.5]}
23... c2 {[%clk 0:01:03.9]} 24. Qd4 {[%clk 0:01:12.5]} 24... Bf6 {[%clk
0:00:43.5]} 25. Be5 {[%clk 0:01:12.2]} 25... Nb5 {[%clk 0:00:40.6]} 26. Qxc4
{[%clk 0:00:36.4]} 26... Rxa1 {[%clk 0:00:35.8]} 27. Rxa1 {[%clk 0:00:35.8]}
27... Qxd5 {[%clk 0:00:36.3]} 28. Qc8+ {[%clk 0:00:34.3]} 28... Kf7 {[%clk
0:00:36.2]} 29. Bxf6 {[%clk 0:00:24.5]} 29... gxf6 {[%clk 0:00:30.9]} 30. Kh2
{[%clk 0:00:23]} 30... Be4 {[%clk 0:00:25.4]} 31. Nh4 {[%clk 0:00:20.3]} 31...
Qd6+ {[%clk 0:00:22]} 32. g3 {[%clk 0:00:15]} 32... Qd4 {[%clk 0:00:20.9]} 33.
Rf1 {[%clk 0:00:10]} 33... Bd3 {[%clk 0:00:14.7]} 34. Qb7+ {[%clk 0:00:09.2]}
34... Kg8 {[%clk 0:00:14.7]} 35. Qc8+ {[%clk 0:00:05.2]} 35... Kf7 {[%clk
0:00:15]} 36. Qb7+ {[%clk 0:00:05.4]} 36... Kf8 {[%clk 0:00:15.6]} 37. Qc8+
{[%clk 0:00:05.1]} 37... Ke7 {[%clk 0:00:15.2]} 38. Qb7+ {[%clk 0:00:04.5]}
38... Qd7 {[%clk 0:00:15.3]} 39. Qb6 {[%clk 0:00:01.9]} 39... Bxf1 {[%clk
0:00:15.2]} 40. Qc5+ {[%clk 0:00:02.6]} 40... Qd6 {[%clk 0:00:15.5]} 41. Qxc2
{[%clk 0:00:03]} 41... Bd3 {[%clk 0:00:15.6]} 42. Qd2 {[%clk 0:00:02.6]} 42...
Kf7 {[%clk 0:00:14.6]} 43. Qe3 {[%clk 0:00:02.4]} 43... Qd4 {[%clk 0:00:14]} 44.
Qf3 {[%clk 0:00:02.2]} 44... Be4 {[%clk 0:00:14.2]} 45. Qh5+ {[%clk 0:00:02.7]}
45... Kg7 {[%clk 0:00:12.5]} 46. Qg4+ {[%clk 0:00:03]} 46... Kf8 {[%clk
0:00:12.2]} 47. Qf4 {[%clk 0:00:02.2]} 47... Nd6 {[%clk 0:00:11.6]} 48. Ng2
{[%clk 0:00:01.5]} 48... Qe5 {[%clk 0:00:10.4]} 49. Qh6+ {[%clk 0:00:01.9]}
49... Kg8 {[%clk 0:00:10.9]} 0-1

[Event "Early-Titled-Tuesday-Blitz-August-29-2023"]
[Site "Chess.com"]
[Date "2023.08.29"]
[Round "5"]
[White "Ural_bogatyr"]
[Black "falzehope0"]
[Result "0-1"]
[WhiteElo "2560"]
[BlackElo "2433"]
[TimeControl "180+1"]
[EndTime "8:55:51 PDT"]
[Termination "falzehope0 won on time"]

1. d4 {[%clk 0:02:45.1]} 1... e6 {[%clk 0:02:55.1]} 2. e4 {[%clk 0:02:43.9]}
2... d5 {[%clk 0:02:54.9]} 3. Nc3 {[%clk 0:02:44.7]} 3... f5 {[%clk 0:02:52.4]}
4. exf5 {[%clk 0:02:43.4]} 4... exf5 {[%clk 0:02:53.3]} 5. Nf3 {[%clk
0:02:39.2]} 5... Nf6 {[%clk 0:02:52.3]} 6. Ne5 {[%clk 0:02:34.4]} 6... Bd6
{[%clk 0:02:49.7]} 7. Bg5 {[%clk 0:02:34.3]} 7... c6 {[%clk 0:02:46.5]} 8. Qf3
{[%clk 0:02:30]} 8... O-O {[%clk 0:02:46]} 9. O-O-O {[%clk 0:02:30.2]} 9... Nbd7
{[%clk 0:02:34.6]} 10. Nxd7 {[%clk 0:02:22.7]} 10... Bxd7 {[%clk 0:02:34.3]} 11.
Bd3 {[%clk 0:02:22.6]} 11... Qa5 {[%clk 0:02:27.2]} 12. Bxf6 {[%clk 0:02:14.8]}
12... Rxf6 {[%clk 0:02:26.3]} 13. Kb1 {[%clk 0:02:14.3]} 13... b5 {[%clk
0:02:20.2]} 14. Ne2 {[%clk 0:02:10.9]} 14... f4 {[%clk 0:02:16.4]} 15. h4 {[%clk
0:02:08.7]} 15... Qb6 {[%clk 0:02:11.8]} 16. h5 {[%clk 0:02:06.7]} 16... h6
{[%clk 0:01:55.6]} 17. Rh4 {[%clk 0:02:04.2]} 17... Raf8 {[%clk 0:01:53.8]} 18.
c3 {[%clk 0:01:39.6]} 18... a5 {[%clk 0:01:49.6]} 19. Ka1 {[%clk 0:01:35.9]}
19... a4 {[%clk 0:01:49.2]} 20. a3 {[%clk 0:01:34.7]} 20... Qb8 {[%clk
0:01:46.5]} 21. Bb1 {[%clk 0:01:28.4]} 21... Qc8 {[%clk 0:01:40.2]} 22. Nc1
{[%clk 0:01:22.8]} 22... Qe8 {[%clk 0:01:28.5]} 23. Nd3 {[%clk 0:01:19.9]} 23...
Qe7 {[%clk 0:01:28.6]} 24. Re1 {[%clk 0:01:17.3]} 24... Be6 {[%clk 0:01:25.3]}
25. Ne5 {[%clk 0:01:14.6]} 25... Bxe5 {[%clk 0:01:00.5]} 26. Rxe5 {[%clk
0:01:12.7]} 26... Qd7 {[%clk 0:00:56.4]} 27. Bc2 {[%clk 0:00:50.9]} 27... Kh8
{[%clk 0:00:51.6]} 28. Bb1 {[%clk 0:00:49.3]} 28... Qd6 {[%clk 0:00:48.5]} 29.
Rh1 {[%clk 0:00:42.5]} 29... Qd7 {[%clk 0:00:47.6]} 30. Rhe1 {[%clk 0:00:40.3]}
30... Bf5 {[%clk 0:00:26.2]} 31. Re7 {[%clk 0:00:37.3]} 31... Qc8 {[%clk
0:00:22.1]} 32. Qxf4 {[%clk 0:00:25.8]} 32... Bxb1 {[%clk 0:00:16.7]} 33. Qg3
{[%clk 0:00:26.4]} 33... R6f7 {[%clk 0:00:11.6]} 34. Kxb1 {[%clk 0:00:25.4]}
34... Qf5+ {[%clk 0:00:10.2]} 35. Ka2 {[%clk 0:00:24.2]} 35... Qxf2 {[%clk
0:00:09.2]} 36. Rxf7 {[%clk 0:00:20]} 36... Qxf7 {[%clk 0:00:09]} 37. Qd6 {[%clk
0:00:16.6]} 37... Qf6 {[%clk 0:00:07.8]} 38. Re6 {[%clk 0:00:16.2]} 38... Qf4
{[%clk 0:00:06.7]} 39. Qxf4 {[%clk 0:00:11.4]} 39... Rxf4 {[%clk 0:00:06.2]} 40.
Rxc6 {[%clk 0:00:12]} 40... Rf2 {[%clk 0:00:06.6]} 41. Rc5 {[%clk 0:00:12]}
41... Rxg2 {[%clk 0:00:07.1]} 42. Rxd5 {[%clk 0:00:12.5]} 42... Rg5 {[%clk
0:00:05.6]} 43. Rd8+ {[%clk 0:00:08.7]} 43... Kh7 {[%clk 0:00:05.7]} 44. d5
{[%clk 0:00:09.6]} 44... Rxh5 {[%clk 0:00:05.6]} 45. d6 {[%clk 0:00:07.9]} 45...
Rd5 {[%clk 0:00:06.1]} 46. b3 {[%clk 0:00:06.4]} 46... axb3+ {[%clk 0:00:05.4]}
47. Kxb3 {[%clk 0:00:06.5]} 47... h5 {[%clk 0:00:06.3]} 48. c4 {[%clk
0:00:06.6]} 48... bxc4+ {[%clk 0:00:07]} 49. Kxc4 {[%clk 0:00:07.5]} 49... Rd1
{[%clk 0:00:07.3]} 50. a4 {[%clk 0:00:07.3]} 50... h4 {[%clk 0:00:07.8]} 51. Kc5
{[%clk 0:00:07.1]} 51... h3 {[%clk 0:00:08.3]} 52. Re8 {[%clk 0:00:03.4]} 52...
h2 {[%clk 0:00:08.5]} 0-1

[Event "Early-Titled-Tuesday-Blitz-August-29-2023"]
[Site "Chess.com"]
[Date "2023.08.29"]
[Round "5"]
[White "Fleetw00dMac"]
[Black "AlexNovitz"]
[Result "1/2-1/2"]
[WhiteElo "2419"]
[BlackElo "2230"]
[TimeControl "180+1"]
[EndTime "8:55:51 PDT"]
[Termination "Game drawn - insufficient material"]

1. d4 {[%clk 0:03:00.9]} 1... Nf6 {[%clk 0:02:57.8]} 2. c4 {[%clk 0:03:00.8]}
2... e6 {[%clk 0:02:57.4]} 3. Nc3 {[%clk 0:03:00.6]} 3... Bb4 {[%clk 0:02:57.9]}
4. Qc2 {[%clk 0:03:00.4]} 4... d6 {[%clk 0:02:53.9]} 5. Bg5 {[%clk 0:02:58.9]}
5... Nbd7 {[%clk 0:02:51.9]} 6. e3 {[%clk 0:02:49.9]} 6... O-O {[%clk
0:02:49.1]} 7. Bd3 {[%clk 0:02:48.6]} 7... h6 {[%clk 0:02:49.5]} 8. Bh4 {[%clk
0:02:48.1]} 8... c5 {[%clk 0:02:48.3]} 9. Nf3 {[%clk 0:02:44.3]} 9... e5 {[%clk
0:02:42]} 10. dxe5 {[%clk 0:02:38.7]} 10... dxe5 {[%clk 0:02:40.2]} 11. O-O
{[%clk 0:02:29.4]} 11... Bxc3 {[%clk 0:02:38.8]} 12. bxc3 {[%clk 0:02:25.7]}
12... Re8 {[%clk 0:02:35.2]} 13. Nd2 {[%clk 0:02:22]} 13... Qc7 {[%clk
0:02:23.5]} 14. e4 {[%clk 0:02:15.4]} 14... g5 {[%clk 0:02:15]} 15. Bg3 {[%clk
0:02:13.9]} 15... Nb6 {[%clk 0:02:10.2]} 16. h4 {[%clk 0:01:57.9]} 16... Be6
{[%clk 0:02:07.1]} 17. hxg5 {[%clk 0:01:54.5]} 17... hxg5 {[%clk 0:02:08]} 18.
Nf3 {[%clk 0:01:54.3]} 18... Bxc4 {[%clk 0:01:45.7]} 19. Nxg5 {[%clk 0:01:35.8]}
19... Rad8 {[%clk 0:01:41.5]} 20. Bxc4 {[%clk 0:01:35.5]} 20... Nxc4 {[%clk
0:01:41]} 21. Qe2 {[%clk 0:01:35.5]} 21... b5 {[%clk 0:01:36.3]} 22. Qf3 {[%clk
0:01:34.5]} 22... Nh7 {[%clk 0:01:23.6]} 23. Nxh7 {[%clk 0:01:27.7]} 23... Kxh7
{[%clk 0:01:24.5]} 24. Qh5+ {[%clk 0:01:27.3]} 24... Kg8 {[%clk 0:01:23.6]} 25.
Bh4 {[%clk 0:01:24.7]} 25... Rd6 {[%clk 0:01:17.8]} 26. Rad1 {[%clk 0:01:17.3]}
26... Rg6 {[%clk 0:01:16.6]} 27. Qf5 {[%clk 0:01:09.2]} 27... Ree6 {[%clk
0:01:12.1]} 28. Rd8+ {[%clk 0:01:04.4]} 28... Kg7 {[%clk 0:01:10.6]} 29. Rfd1
{[%clk 0:01:01.3]} 29... Rd6 {[%clk 0:00:48.5]} 30. R1xd6 {[%clk 0:00:54.1]}
30... Rxd6 {[%clk 0:00:49.1]} 31. Qh5 {[%clk 0:00:45.9]} 31... Rxd8 {[%clk
0:00:38.8]} 32. Qg5+ {[%clk 0:00:45.1]} 32... Kf8 {[%clk 0:00:35.9]} 33. Qxd8+
{[%clk 0:00:19.7]} 33... Qxd8 {[%clk 0:00:36.8]} 34. Bxd8 {[%clk 0:00:19.8]}
34... Nd2 {[%clk 0:00:34.3]} 35. f3 {[%clk 0:00:19.4]} 35... Ke8 {[%clk
0:00:30.2]} 36. Bf6 {[%clk 0:00:19.1]} 36... Nc4 {[%clk 0:00:27]} 37. Kf2 {[%clk
0:00:19.2]} 37... Kd7 {[%clk 0:00:27.4]} 38. Ke2 {[%clk 0:00:19.2]} 38... Ke6
{[%clk 0:00:27.7]} 39. Bd8 {[%clk 0:00:18.7]} 39... a5 {[%clk 0:00:25.9]} 40. g3
{[%clk 0:00:17.4]} 40... a4 {[%clk 0:00:22.8]} 41. f4 {[%clk 0:00:16.8]} 41...
f5 {[%clk 0:00:20.6]} 42. exf5+ {[%clk 0:00:13.9]} 42... Kxf5 {[%clk 0:00:20.8]}
43. fxe5 {[%clk 0:00:14.2]} 43... Nxe5 {[%clk 0:00:19.4]} 44. Be7 {[%clk
0:00:12.7]} 44... Nd7 {[%clk 0:00:15.1]} 45. Ke3 {[%clk 0:00:11.7]} 45... Kg4
{[%clk 0:00:15.1]} 46. Ke4 {[%clk 0:00:11.9]} 46... b4 {[%clk 0:00:15.4]} 47.
cxb4 {[%clk 0:00:11.2]} 47... cxb4 {[%clk 0:00:16]} 48. Bxb4 {[%clk 0:00:11.3]}
48... Kxg3 {[%clk 0:00:16.7]} 49. Kd5 {[%clk 0:00:11.7]} 49... Kg4 {[%clk
0:00:16.4]} 50. Kc6 {[%clk 0:00:11.9]} 50... Ne5+ {[%clk 0:00:16.9]} 51. Kb5
{[%clk 0:00:11.9]} 51... Kf5 {[%clk 0:00:15.6]} 52. Kxa4 {[%clk 0:00:11.4]}
52... Ke6 {[%clk 0:00:16]} 53. Kb5 {[%clk 0:00:11.7]} 53... Kd7 {[%clk
0:00:16.3]} 54. a4 {[%clk 0:00:11.3]} 54... Kc8 {[%clk 0:00:16.5]} 55. Bd6
{[%clk 0:00:10.6]} 55... Nd7 {[%clk 0:00:15.6]} 56. Kc6 {[%clk 0:00:10.2]} 56...
Nb8+ {[%clk 0:00:14.4]} 57. Bxb8 {[%clk 0:00:09.9]} 57... Kxb8 {[%clk
0:00:14.5]} 58. Kd6 {[%clk 0:00:10.3]} 58... Kb7 {[%clk 0:00:14.8]} 59. Ke6
{[%clk 0:00:10.8]} 59... Ka6 {[%clk 0:00:15.7]} 60. Kf6 {[%clk 0:00:11.2]} 60...
Ka5 {[%clk 0:00:16.6]} 61. Kg6 {[%clk 0:00:11.5]} 61... Kxa4 {[%clk 0:00:17.5]}
1/2-1/2